fUST/lending_fUST_20250725
["ID","MTS","AMOUNT","RATE_DAILY","PERIOD"]
[374663558,1753404646907,-500.0,0.00018273,2]
[374663559,1753404646917,-500.0,0.00018273,2]
[374663560,1753404646926,-501.17337381,0.00018273,2]
[374663561,1753404646936,-500.0,0.00018273,2]
[374663562,1753404646946,-493.8414142,0.00018273,2]
[374663563,1753404646955,-500.0,0.00018273,2]
[374663564,1753404646965,-500.0,0.00018273,2]
[374663565,1753404646974,-334.31491315,0.00018273,2]
[374663566,1753404646984,-460.0,0.00018273,2]
[374663567,1753404646994,-460.0,0.00018273,2]
[374663568,1753404647003,-460.0,0.00018273,2]
[374663569,1753404647014,-460.0,0.00018273,2]
[374663570,1753404647023,-460.0,0.00018273,2]
[374663571,1753404647035,-460.0,0.00018273,2]
[374663572,1753404647044,-460.0,0.00018273,2]
[374663573,1753404647053,-460.0,0.00018273,2]
[374663574,1753404647063,-462.1653456,0.00018273,2]
[374663575,1753404647073,-460.0,0.00018273,2]
[374663576,1753404647083,-460.0,0.00018273,2]
[374663577,1753404647093,-460.0,0.00018273,2]
[374663578,1753404647102,-460.0,0.00018273,2]
[374663579,1753404647112,-460.0,0.00018273,2]
[374663580,1753404647121,-460.0,0.00018273,2]
[374663581,1753404647131,-592.29574229,0.00018273,2]
[374663582,1753404647140,-460.0,0.00018273,2]
[374663583,1753404647150,-460.0,0.00018273,2]
[374663584,1753404647160,-460.0,0.00018273,2]
[374663585,1753404647169,-460.0,0.00018273,2]
[374663586,1753404647179,-460.0,0.00018273,2]
[374663587,1753404647188,-629.7,0.00018273,2]
[374663588,1753404647198,-460.0,0.00018273,2]
[374663589,1753404647208,-689.38,0.00018273,2]
[374663590,1753404647217,-460.0,0.00018273,2]
[374663591,1753404647227,-576.92,0.00018273,2]
[374663593,1753404647237,-460.0,0.00018273,2]
[374663595,1753404647247,-460.0,0.00018273,2]
[374663597,1753404647256,-570.09,0.00018273,2]
[374663599,1753404647265,-460.0,0.00018273,2]
[374663601,1753404647274,-465.4185732,0.00018273,2]
[374663603,1753404647285,-460.0,0.00018273,2]
[374663605,1753404647295,-460.0,0.00018273,2]
[374663607,1753404647304,-460.0,0.00018273,2]
[374663609,1753404647315,-460.0,0.00018273,2]
[374663611,1753404647324,-612.95,0.00018273,2]
[374663613,1753404647334,-460.0,0.00018273,2]
[374663615,1753404647343,-865.33,0.00018273,2]
[374663618,1753404647353,-185.17641077,0.00018273,2]
[374663620,1753404647364,-460.0,0.00018273,2]
[374663622,1753404647374,-463.18449326,0.00018273,2]
[374663624,1753404647384,-460.0,0.00018273,2]
[374663625,1753404647394,-460.0,0.00018273,2]
[374663626,1753404647404,-460.0,0.00018273,2]
[374663628,1753404647413,-520.64,0.00018273,2]
[374663630,1753404647423,-460.0,0.00018273,2]
[374663632,1753404647432,-460.0,0.00018273,2]
[374663634,1753404647443,-460.0,0.00018273,2]
[374663636,1753404647452,-460.0,0.00018273,2]
[374663638,1753404647462,-460.0,0.00018273,2]
[374663640,1753404647471,-1299.12,0.00018273,2]
[374663642,1753404647481,-278.33657363,0.00018273,2]
[374663644,1753404647490,-923.5,0.00018273,2]
[374663646,1753404647499,-460.0,0.00018273,2]
[374663648,1753404647509,-460.0,0.00018273,2]
[374663650,1753404647519,-460.0,0.00018273,2]
[374663652,1753404647531,-460.0,0.00018273,2]
[374663653,1753404647540,-557.84,0.00018273,2]
[374663655,1753404647550,-1065.37,0.00018273,2]
[374663657,1753404647559,-460.0,0.00018273,2]
[374663658,1753404647569,-460.0,0.00018273,2]
[374663659,1753404647579,-460.0,0.00018273,2]
[374663660,1753404647588,-460.0,0.00018273,2]
[374663661,1753404647598,-460.0,0.00018273,2]
[374663662,1753404647608,-594.76,0.00018273,2]
[374663663,1753404647618,-460.0,0.00018273,2]
[374663664,1753404647630,-460.0,0.00018273,2]
[374663665,1753404647639,-466.0748198,0.00018273,2]
[374663666,1753404647649,-460.0,0.00018273,2]
[374663667,1753404647659,-460.0,0.00018273,2]
[374663668,1753404647670,-460.0,0.00018273,2]
[374663669,1753404647679,-460.0,0.00018273,2]
[374663670,1753404647689,-460.0,0.00018273,2]
[374663671,1753404647699,-460.0,0.00018273,2]
[374663672,1753404647710,-460.0,0.00018273,2]
[374663673,1753404647720,-729.45,0.00018273,2]
[374663674,1753404647729,-460.0,0.00018273,2]
[374663675,1753404647739,-460.0,0.00018273,2]
[374663676,1753404647749,-460.0,0.00018273,2]
[374663677,1753404647758,-1290.64,0.00018273,2]
[374663678,1753404647768,-460.0,0.00018273,2]
[374663679,1753404647779,-462.73406247,0.00018273,2]
[374663680,1753404647789,-260.47701424,0.00018273,2]
[374663681,1753404647798,-466.93380232,0.00018273,2]
[374663682,1753404647808,-460.0,0.00018273,2]
[374663683,1753404647818,-460.0,0.00018273,2]
[374663684,1753404647827,-460.0,0.00018273,2]
[374663685,1753404647837,-256.31427181,0.00018273,2]
[374663686,1753404647847,-460.0,0.00018273,2]
[374663687,1753404647857,-460.0,0.00018273,2]
[374663688,1753404647866,-460.0,0.00018273,2]
[374663689,1753404647876,-460.0,0.00018273,2]
[374663690,1753404647886,-460.0,0.00018273,2]
[374663691,1753404647896,-460.0,0.00018273,2]
[374663692,1753404647904,-460.0,0.00018273,2]
[374663693,1753404647911,-587.44,0.00018273,2]
[374663694,1753404647919,-461.87328598,0.00018273,2]
[374663695,1753404647927,-460.0,0.00018273,2]
[374663696,1753404647935,-460.0,0.00018273,2]
[374663697,1753404647944,-560.63,0.00018273,2]
[374663698,1753404647953,-628.41,0.00018273,2]
[374663699,1753404647960,-558.25,0.00018273,2]
[374663700,1753404647968,-460.0,0.00018273,2]
[374663701,1753404647976,-460.0,0.00018273,2]
[374663702,1753404647984,-460.0,0.00018273,2]
[374663703,1753404647992,-1376.25,0.00018273,2]
[374663704,1753404647999,-1187.67,0.00018273,2]
[374663705,1753404648008,-460.0,0.00018273,2]
[374663706,1753404648018,-730.77,0.00018273,2]
[374663707,1753404648029,-297.16130481,0.00018273,2]
[374663708,1753404648039,-541.05189478,0.00018273,2]
[374663709,1753404648049,-460.0,0.00018273,2]
[374663710,1753404648058,-460.0,0.00018273,2]
[374663711,1753404648068,-460.0,0.00018273,2]
[374663712,1753404648077,-463.90730998,0.00018273,2]
[374663713,1753404648087,-4838.6517861,0.00018314,2]
[374663714,1753404648097,-307.59504346,0.0001839,2]
[374663715,1753404648107,-460.0,0.0001839,2]
[374663716,1753404648116,-460.0,0.0001839,2]
[374663717,1753404648126,-460.0,0.0001839,2]
[374663718,1753404648136,-460.0,0.0001839,2]
[374663719,1753404648145,-431.18325903,0.0001839,2]
[374663720,1753404648155,-460.0,0.0001839,2]
[374663721,1753404648165,-356.77680584,0.0001839,2]
[374663722,1753404648175,-460.0,0.0001839,2]
[374663723,1753404648184,-460.0,0.0001839,2]
[374663724,1753404648194,-460.0,0.0001839,2]
[374663725,1753404648203,-700.29,0.0001839,2]
[374663726,1753404648213,-1384.34,0.0001839,2]
[374663727,1753404648223,-1404.51,0.0001839,2]
[374663728,1753404648231,-1109.55,0.0001839,2]
[374663729,1753404648241,-465.49,0.0001839,2]
[374663730,1753404648251,-530.19,0.0001839,2]
[374663731,1753404648261,-460.0,0.0001839,2]
[374663732,1753404648270,-1001.67,0.0001839,2]
[374663733,1753404648281,-853.47,0.0001839,2]
[374663734,1753404648291,-540.57,0.0001839,2]
[374663735,1753404648301,-1280.81,0.0001839,2]
[374663736,1753404648310,-5769.14,0.0001839,2]
[374663737,1753404648322,-1347.45,0.0001839,2]
[374663738,1753404648332,-1208.92223281,0.00018404,2]
[374663739,1753404648341,-460.0,0.00018414,2]
[374663740,1753404648351,-460.0,0.00018414,2]
[374663741,1753404648361,-460.0,0.00018414,2]
[374663742,1753404648372,-460.0,0.00018414,2]
[374663743,1753404648381,-460.0,0.00018414,2]
[374663745,1753404648391,-460.0,0.00018414,2]
[374663747,1753404648400,-460.0,0.00018414,2]
[374663749,1753404648409,-460.0,0.00018414,2]
[374663751,1753404648419,-460.0,0.00018414,2]
[374663753,1753404648428,-460.0,0.00018414,2]
[374663755,1753404648438,-1590.28306577,0.00018415,2]
[374663757,1753404648448,-500.0,0.00018428,2]
[374663759,1753404648458,-500.0,0.00018437,2]
[374663761,1753404648467,-500.0,0.0001844,2]
[374663763,1753404648477,-500.0,0.0001844,2]
[374663764,1753404648486,-500.0,0.0001844,2]
[374663766,1753404648495,-460.0,0.00018441,2]
[374663768,1753404648504,-460.0,0.00018441,2]
[374663770,1753404648514,-460.0,0.00018441,2]
[374663772,1753404648523,-488.5814363,0.00018441,2]
[374663774,1753404648533,-460.0,0.00018441,2]
[374663776,1753404648543,-460.0,0.00018441,2]
[374663777,1753404648552,-800.56,0.00018441,2]
[374663778,1753404648561,-460.0,0.00018441,2]
[374663780,1753404648571,-460.0,0.00018441,2]
[374663782,1753404648580,-460.0,0.00018441,2]
[374663784,1753404648589,-460.0,0.00018441,2]
[374663786,1753404648599,-460.0,0.00018441,2]
[374663788,1753404648609,-460.0,0.00018441,2]
[374663790,1753404648618,-460.0,0.00018441,2]
[374663791,1753404648630,-460.0,0.00018441,2]
[374663792,1753404648639,-460.0,0.00018441,2]
[374663793,1753404648649,-460.0,0.00018441,2]
[374663794,1753404648658,-460.0,0.00018441,2]
[374663795,1753404648667,-460.0,0.00018441,2]
[374663796,1753404648676,-460.0,0.00018441,2]
[374663797,1753404648686,-460.0,0.00018441,2]
[374663798,1753404648695,-460.0,0.00018441,2]
[374663799,1753404648705,-460.0,0.00018441,2]
[374663800,1753404648714,-460.0,0.00018441,2]
[374663801,1753404648723,-460.0,0.00018441,2]
[374663802,1753404648732,-4838.6517861,0.00018452,2]
[374663803,1753404648741,-460.0,0.00018507,2]
[374663804,1753404648750,-460.0,0.00018507,2]
[374663805,1753404648758,-460.0,0.00018507,2]
[374663806,1753404648768,-460.0,0.00018507,2]
[374663807,1753404648777,-460.0,0.00018507,2]
[374663808,1753404648788,-460.0,0.00018507,2]
[374663809,1753404648797,-460.0,0.00018507,2]
[374663810,1753404648807,-817.21,0.00018507,2]
[374663812,1753404648817,-538.7,0.00018507,2]
[374663814,1753404648827,-725.04,0.00018507,2]
[374663816,1753404648836,-3616.54,0.00018507,2]
[374663817,1753404648846,-460.0,0.00018507,2]
[374663819,1753404648855,-2208.85,0.00018507,2]
[374663822,1753404648865,-515.93,0.00018507,2]
[374663823,1753404648875,-1182.8,0.00018507,2]
[374663824,1753404648884,-2656.18,0.00018508,2]
[374663826,1753404648894,-4422.04,0.00018508,2]
[374663828,1753404648903,-3458.58,0.00018508,2]
[374663830,1753404648912,-460.0,0.00018508,2]
[374663832,1753404648921,-460.0,0.00018511,2]
[374663834,1753404648930,-460.0,0.00018511,2]
[374663836,1753404648940,-460.0,0.00018511,2]
[374663838,1753404648950,-460.0,0.00018511,2]
[374663840,1753404648959,-565.77012701,0.00018511,2]
[374663842,1753404648968,-460.0,0.00018511,2]
[374663844,1753404648977,-460.0,0.00018511,2]
[374663846,1753404648987,-465.18212705,0.00018511,2]
[374663848,1753404648997,-460.0,0.00018511,2]
[374663850,1753404649006,-460.0,0.00018511,2]
[374663852,1753404649016,-460.0,0.00018511,2]
[374663854,1753404649025,-2293.65,0.00018511,2]
[374663856,1753404649036,-2473.65,0.00018511,2]
[374663858,1753404649046,-460.0,0.00018511,2]
[374663860,1753404649056,-3404.83,0.00018511,2]
[374663862,1753404649066,-460.0,0.00018511,2]
[374663864,1753404649076,-1066.73,0.00018511,2]
[374663866,1753404649085,-460.0,0.00018511,2]
[374663868,1753404649095,-460.0,0.00018512,2]
[374663870,1753404649105,-460.0,0.00018512,2]
[374663872,1753404649114,-460.0,0.00018512,2]
[374663874,1753404649124,-460.0,0.00018512,2]
[374663876,1753404649134,-460.0,0.00018512,2]
[374663878,1753404649143,-460.0,0.00018512,2]
[374663880,1753404649153,-460.0,0.00018512,2]
[374663882,1753404649162,-460.0,0.00018512,2]
[374663884,1753404649172,-460.0,0.00018512,2]
[374663886,1753404649181,-460.0,0.00018512,2]
[374663888,1753404649191,-460.0,0.00018512,2]
[374663890,1753404649201,-460.0,0.00018512,2]
[374663892,1753404649211,-567.78503721,0.00018512,2]
[374663894,1753404649220,-460.0,0.00018512,2]
[374663896,1753404649229,-460.0,0.00018512,2]
[374663897,1753404649239,-460.0,0.00018512,2]
[374663899,1753404649248,-460.0,0.00018512,2]
[374663901,1753404649258,-460.0,0.00018512,2]
[374663903,1753404649267,-460.0,0.00018512,2]
[374663905,1753404649277,-460.0,0.00018512,2]
[374663907,1753404649287,-460.0,0.00018512,2]
[374663909,1753404649297,-461.45718206,0.00018512,2]
[374663911,1753404649307,-1039.36,0.00018512,2]
[374663913,1753404649317,-619.46,0.00018512,2]
[374663915,1753404649326,-460.0,0.00018512,2]
[374663917,1753404649336,-460.0,0.00018512,2]
[374663919,1753404649346,-858.12,0.00018512,2]
[374663921,1753404649355,-460.0,0.00018512,2]
[374663923,1753404649367,-460.0,0.00018512,2]
[374663925,1753404649376,-458.61206655,0.00018512,2]
[374663927,1753404649386,-531.49518335,0.00018512,2]
[374663928,1753404649396,-460.0,0.00018512,2]
[374663930,1753404649406,-460.0,0.00018512,2]
[374663932,1753404649415,-460.0,0.00018512,2]
[374663934,1753404649424,-460.0,0.00018512,2]
[374663936,1753404649434,-478.57,0.00018512,2]
[374663938,1753404649444,-1582.69,0.00018512,2]
[374663952,1753404649556,-636.36,0.00018512,2]
[374663954,1753404649579,-681.19,0.00018512,2]
[374663956,1753404649589,-460.0,0.00018512,2]
[374663958,1753404649598,-460.0,0.00018512,2]
[374663960,1753404649608,-826.24,0.00018512,2]
[374663962,1753404649617,-490.98,0.00018512,2]
[374663964,1753404649632,-707.1,0.00018512,2]
[374663966,1753404649641,-460.0,0.00018512,2]
[374663968,1753404649651,-460.0,0.00018512,2]
[374663970,1753404649660,-460.0,0.00018512,2]
[374663972,1753404649669,-644.95,0.00018512,2]
[374663974,1753404649679,-510.83,0.00018512,2]
[374663976,1753404649688,-517.67,0.00018515,2]
[374663978,1753404649698,-460.0,0.00018515,2]
[374663980,1753404649707,-460.0,0.00018515,2]
[374663982,1753404649716,-460.0,0.00018515,2]
[374663984,1753404649726,-460.0,0.00018515,2]
[374663986,1753404649735,-460.0,0.00018515,2]
[374663988,1753404649745,-460.0,0.00018515,2]
[374663990,1753404649754,-460.0,0.00018515,2]
[374663992,1753404649763,-653.07,0.00018515,2]
[374663994,1753404649772,-460.0,0.00018515,2]
[374663996,1753404649782,-460.0,0.00018515,2]
[374663998,1753404649791,-364.99434913,0.00018515,2]
[374664000,1753404649801,-617.41,0.00018515,2]
[374664002,1753404649811,-460.0,0.00018515,2]
[374664004,1753404649820,-460.82118327,0.00018515,2]
[374664006,1753404649829,-741.91,0.00018515,2]
[374664008,1753404649838,-460.0,0.00018515,2]
[374664010,1753404649848,-460.0,0.00018515,2]
[374664012,1753404649858,-460.0,0.00018515,2]
[374664014,1753404649867,-460.0,0.00018515,2]
[374664016,1753404649876,-460.0,0.00018515,2]
[374664018,1753404649885,-325.79062756,0.00018515,2]
[374664020,1753404649894,-460.0,0.00018515,2]
[374664022,1753404649903,-460.0,0.00018515,2]
[374664023,1753404649913,-460.0,0.00018515,2]
[374664025,1753404649922,-460.0,0.00018515,2]
[374664027,1753404649931,-463.0195222,0.00018515,2]
[374664029,1753404649941,-460.0,0.00018515,2]
[374664031,1753404649951,-460.0,0.00018515,2]
[374664034,1753404649960,-460.0,0.00018515,2]
[374664035,1753404649970,-460.0,0.00018515,2]
[374664037,1753404649979,-460.0,0.00018515,2]
[374664039,1753404649989,-460.0,0.00018515,2]
[374664041,1753404649998,-460.0,0.00018515,2]
[374664043,1753404650008,-460.0,0.00018515,2]
[374664044,1753404650018,-460.0,0.00018515,2]
[374664045,1753404650028,-535.39,0.00018515,2]
[374664046,1753404650038,-460.0,0.00018515,2]
[374664047,1753404650048,-460.0,0.00018515,2]
[374664048,1753404650057,-460.0,0.00018515,2]
[374664049,1753404650066,-906.7,0.00018515,2]
[374664050,1753404650075,-464.40340721,0.00018515,2]
[374664051,1753404650085,-460.0,0.00018515,2]
[374664052,1753404650095,-460.0,0.00018515,2]
[374664053,1753404650104,-460.0,0.00018515,2]
[374664054,1753404650114,-500.0,0.00018515,2]
[374664055,1753404650124,-460.0,0.00018515,2]
[374664056,1753404650134,-460.0,0.00018515,2]
[374664057,1753404650144,-463.82945391,0.00018515,2]
[374664058,1753404650154,-460.0,0.00018515,2]
[374664059,1753404650163,-460.0,0.00018515,2]
[374664060,1753404650173,-460.0,0.00018515,2]
[374664061,1753404650183,-460.0,0.00018515,2]
[374664062,1753404650193,-460.0,0.00018515,2]
[374664063,1753404650203,-461.50811901,0.00018515,2]
[374664064,1753404650212,-460.0,0.00018515,2]
[374664065,1753404650222,-460.0,0.00018515,2]
[374664066,1753404650232,-186.38873927,0.00018515,2]
[374664067,1753404650242,-460.0,0.00018515,2]
[374664068,1753404650252,-460.0,0.00018515,2]
[374664069,1753404650261,-460.0,0.00018515,2]
[374664070,1753404650270,-957.35,0.00018515,2]
[374664071,1753404650280,-460.0,0.00018517,2]
[374664072,1753404650289,-460.0,0.00018517,2]
[374664073,1753404650299,-460.0,0.00018517,2]
[374664074,1753404650309,-460.0,0.00018517,2]
[374664075,1753404650319,-460.0,0.00018517,2]
[374664076,1753404650329,-460.0,0.00018517,2]
[374664077,1753404650339,-527.08,0.00018517,2]
[374664078,1753404650349,-460.0,0.00018517,2]
[374664079,1753404650359,-460.0,0.00018517,2]
[374664080,1753404650369,-460.0,0.00018517,2]
[374664081,1753404650379,-460.0,0.00018517,2]
[374664082,1753404650390,-460.0,0.00018517,2]
[374664083,1753404650400,-460.0,0.00018517,2]
[374664084,1753404650409,-460.0,0.00018517,2]
[374664085,1753404650419,-460.0,0.00018517,2]
[374664086,1753404650428,-460.0,0.00018517,2]
[374664087,1753404650438,-465.51637816,0.00018517,2]
[374664088,1753404650448,-460.0,0.00018517,2]
[374664089,1753404650457,-460.0,0.00018517,2]
[374664090,1753404650467,-460.0,0.00018517,2]
[374664091,1753404650477,-460.0,0.00018517,2]
[374664092,1753404650487,-460.0,0.00018517,2]
[374664093,1753404650497,-641.51,0.00018517,2]
[374664094,1753404650507,-460.0,0.00018517,2]
[374664095,1753404650517,-460.0,0.00018517,2]
[374664096,1753404650527,-500.0,0.00018536,2]
[374664097,1753404650537,-3801.642,0.00018536,2]
[374664098,1753404650547,-215.0738,0.00018536,2]
[374664099,1753404650557,-151.0,0.00018536,2]
[374664100,1753404650567,-151.0,0.00018536,2]
[374664101,1753404650576,-151.0,0.00018536,2]
[374664102,1753404650586,-151.0,0.00018536,2]
[374664103,1753404650595,-151.0,0.00018536,2]
[374664104,1753404650605,-151.0,0.00018536,2]
[374664105,1753404650615,-151.0,0.00018536,2]
[374664106,1753404650627,-151.0,0.00018536,2]
[374664107,1753404650641,-151.0,0.00018536,2]
[374664108,1753404650651,-151.0,0.00018536,2]
[374664109,1753404650661,-151.0,0.00018536,2]
[374664110,1753404650671,-151.0,0.00018536,2]
[374664111,1753404650681,-151.0,0.00018536,2]
[374664112,1753404650691,-159.14150464,0.00018536,2]
[374664113,1753404650701,-151.0,0.00018536,2]
[374664114,1753404650711,-151.0,0.00018536,2]
[374664115,1753404650721,-151.0,0.00018536,2]
[374664116,1753404650730,-151.0,0.00018536,2]
[374664117,1753404650740,-151.0,0.00018536,2]
[374664118,1753404650750,-151.0,0.00018536,2]
[374664119,1753404650760,-151.0,0.00018536,2]
[374664120,1753404650769,-151.0,0.00018536,2]
[374664121,1753404650779,-151.0,0.00018536,2]
[374664122,1753404650789,-151.0,0.00018536,2]
[374664123,1753404650798,-290.09635043,0.00018536,2]
[374664124,1753404650808,-151.0,0.00018536,2]
[374664125,1753404650817,-151.0,0.00018536,2]
[374664126,1753404650827,-151.0,0.00018536,2]
[374664127,1753404650837,-151.0,0.00018536,2]
[374664128,1753404650846,-151.0,0.00018536,2]
[374664129,1753404650855,-151.0,0.00018536,2]
[374664130,1753404650865,-151.0,0.00018536,2]
[374664131,1753404650874,-151.0,0.00018536,2]
[374664132,1753404650883,-151.0,0.00018536,2]
[374664133,1753404650893,-151.0,0.00018536,2]
[374664134,1753404650903,-151.0,0.00018536,2]
[374664135,1753404650912,-151.0,0.00018536,2]
[374664136,1753404650922,-151.0,0.00018536,2]
[374664137,1753404650931,-151.0,0.00018536,2]
[374664138,1753404650940,-151.0,0.00018536,2]
[374664139,1753404650950,-151.0,0.00018536,2]
[374664140,1753404650959,-151.0,0.00018536,2]
[374664141,1753404650968,-151.0,0.00018536,2]
[374664142,1753404650978,-151.0,0.00018536,2]
[374664143,1753404650987,-151.0,0.00018536,2]
[374664144,1753404650996,-25000.0,0.00018536,2]
[374664145,1753404651006,-10760.39364183,0.00018536,2]
[374664146,1753404651015,-151.0,0.00018536,2]
[374664147,1753404651024,-151.0,0.00018536,2]
[374664148,1753404651034,-151.0,0.00018536,2]
[374664149,1753404651043,-151.0,0.00018536,2]
[374664150,1753404651052,-151.0,0.00018536,2]
[374664151,1753404651061,-460.0,0.00018537,2]
[374664152,1753404651070,-460.0,0.00018537,2]
[374664153,1753404651079,-451.89458919,0.00018537,2]
[374664154,1753404651088,-460.0,0.00018537,2]
[374664155,1753404651097,-460.0,0.00018537,2]
[374664156,1753404651105,-460.0,0.00018537,2]
[374664157,1753404651115,-460.0,0.00018537,2]
[374664158,1753404651124,-460.0,0.00018537,2]
[374664159,1753404651134,-682.72,0.00018537,2]
[374664160,1753404651143,-879.04,0.00018537,2]
[374664161,1753404651152,-779.49,0.00018537,2]
[374664162,1753404651162,-460.0,0.00018537,2]
[374664163,1753404651171,-460.0,0.00018538,2]
[374664164,1753404651180,-460.0,0.00018538,2]
[374664165,1753404651190,-460.0,0.00018538,2]
[374664166,1753404651199,-562.81584063,0.00018538,2]
[374664167,1753404651208,-463.46793694,0.00018538,2]
[374664168,1753404651217,-460.0,0.00018538,2]
[374664169,1753404651226,-460.0,0.00018538,2]
[374664170,1753404651235,-353.62368527,0.00018538,2]
[374664171,1753404651244,-1883.51,0.00018538,2]
[374664172,1753404651253,-7566.41,0.00018538,2]
[374664173,1753404651262,-460.0,0.00018538,2]
[374664174,1753404651271,-460.0,0.00018538,2]
[374664175,1753404651281,-460.0,0.00018538,2]
[374664176,1753404651291,-462.68276146,0.00018538,2]
[374664177,1753404651300,-699.86,0.00018538,2]
[374664178,1753404651309,-460.0,0.00018538,2]
[374664179,1753404651319,-472.05071847,0.00018538,2]
[374664180,1753404651328,-1060.78,0.00018538,2]
[374664181,1753404651337,-460.0,0.00018538,2]
[374664182,1753404651347,-460.0,0.00018538,2]
[374664183,1753404651356,-460.0,0.00018538,2]
[374664184,1753404651365,-460.0,0.00018538,2]
[374664185,1753404651374,-842.19,0.00018538,2]
[374664186,1753404651382,-3520.83,0.00018538,2]
[374664187,1753404651391,-2764.23,0.00018538,2]
[374664188,1753404651400,-928.75,0.00018538,2]
[374664189,1753404651410,-460.0,0.00018538,2]
[374664190,1753404651419,-460.0,0.00018538,2]
[374664191,1753404651428,-2372.12,0.00018538,2]
[374664192,1753404651439,-460.0,0.00018538,2]
[374664193,1753404651448,-460.0,0.00018538,2]
[374664194,1753404651458,-882.42,0.00018538,2]
[374664195,1753404651467,-1124.3,0.00018538,2]
[374664196,1753404651477,-460.0,0.00018538,2]
[374664197,1753404651486,-460.0,0.00018538,2]
[374664198,1753404651498,-425.83849649,0.00018538,2]
[374664199,1753404651507,-460.0,0.00018544,2]
[374664200,1753404651517,-460.0,0.00018544,2]
[374664201,1753404651526,-408.50999814,0.00018544,2]
[374664202,1753404651536,-460.0,0.00018544,2]
[374664203,1753404651546,-461.25757545,0.00018544,2]
[374664204,1753404651556,-586.82163842,0.00018544,2]
[374664205,1753404651566,-460.0,0.00018544,2]
[374664206,1753404651575,-460.0,0.00018544,2]
[374664207,1753404651584,-460.0,0.00018544,2]
[374664208,1753404651594,-460.0,0.00018544,2]
[374664209,1753404651603,-521.63393636,0.00018544,2]
[374664210,1753404651613,-461.37575409,0.00018544,2]
[374664211,1753404651622,-460.0,0.00018544,2]
[374664212,1753404651636,-485.64,0.00018544,2]
[374664213,1753404651646,-761.78,0.00018544,2]
[374664214,1753404651655,-460.0,0.00018544,2]
[374664215,1753404651665,-622.1,0.00018544,2]
[374664216,1753404651676,-460.0,0.00018544,2]
[374664217,1753404651686,-460.0,0.00018544,2]
[374664218,1753404651695,-460.0,0.00018544,2]
[374664219,1753404651705,-839.58,0.00018544,2]
[374664220,1753404651714,-678.17,0.00018544,2]
[374664221,1753404651723,-494.73512862,0.00018544,2]
[374664222,1753404651733,-389.82873274,0.00018544,2]
[374664223,1753404651742,-460.0,0.00018544,2]
[374664224,1753404651752,-460.0,0.00018544,2]
[374664225,1753404651762,-460.0,0.00018544,2]
[374664226,1753404651771,-576.16,0.00018544,2]
[374664227,1753404651780,-765.08,0.00018544,2]
[374664228,1753404651791,-1116.47,0.00018544,2]
[374664229,1753404651801,-784.01,0.00018544,2]
[374664230,1753404651810,-578.8,0.00018544,2]
[374664231,1753404651819,-460.0,0.00018544,2]